bitfinex/quotes_SOLUSD_20240607
["timestamp","ask_amount","ask_price","bid_price","bid_amount"]
[1717796587745,7.44,162.86,162.83,2.2722]
[1717796587950,7.44,162.85,162.83,2.2722]
[1717796588850,7.44,162.85,162.83,84.2722]
[1717796589841,7.44,162.85,162.83,2.2722]
[1717796590529,2.2715,162.89,162.83,2.2722]
[1717796590725,7.44,162.86,162.83,2.2722]
[1717796591653,7.44,162.86,162.84,2.2721]
[1717796594046,7.44,162.87,162.84,2.2721]
[1717796598743,7.44,162.87,162.85,6.4924]
[1717796598948,2.2715,162.89,162.85,6.4924]
[1717796599274,7.44,162.87,162.84,2.2721]
[1717796599659,7.44,162.87,162.85,2.272]
[1717796600042,45.0,162.91,162.85,2.272]
[1717796600341,7.44,162.87,162.84,8.7645]
[1717796600757,7.44,162.87,162.85,2.272]
[1717796601261,7.44,162.87,162.84,8.7645]
[1717796601562,2.2714,162.89,162.84,90.7645]
[1717796601854,7.44,162.87,162.84,8.7645]
[1717796602256,7.44,162.87,162.84,6.4924]
[1717796602676,7.44,162.87,162.84,8.7645]
[1717796603271,7.44,162.87,162.85,2.2719]
[1717796603468,7.44,162.87,162.84,8.7644]
[1717796607379,7.44,162.87,162.85,2.272]
[1717796607967,7.44,162.87,162.84,8.7644]
[1717796609143,7.44,162.86,162.84,8.7644]
[1717796610667,2.2714,162.89,162.84,8.7644]
[1717796610854,7.44,162.86,162.84,8.7644]
[1717796613584,7.44,162.86,162.84,6.4924]
[1717796613758,2.2714,162.89,162.84,6.4924]
[1717796613954,7.44,162.86,162.84,6.4924]
[1717796614179,7.44,162.86,162.84,8.7645]
[1717796614875,7.44,162.86,162.83,2.2722]
[1717796616577,7.44,162.86,162.84,2.272]
[1717796617270,7.44,162.86,162.83,2.2722]
[1717796617874,7.44,162.86,162.83,8.9205]
[1717796619279,7.44,162.86,162.83,90.9205]
[1717796619577,7.44,162.86,162.84,2.2721]
[1717796627890,7.44,162.86,162.83,2.2722]
[1717796628268,7.44,162.85,162.83,2.2722]
[1717796628656,2.2714,162.89,162.84,2.2721]
[1717796628862,47.2714,162.89,162.84,2.2721]
[1717796630586,2.2716,162.88,162.83,2.2722]
[1717796630770,7.44,162.84,162.83,2.2722]
[1717796633558,45.0,162.89,162.83,2.2722]
[1717796633763,7.44,162.84,162.83,2.2722]
[1717796637488,7.44,162.84,162.8,6.818]
[1717796637685,1.7032,162.87,162.83,2.2723]
[1717796637895,7.44,162.84,162.82,2.2723]
[1717796638075,7.44,162.83,162.82,2.2723]
[1717796639773,7.44,162.83,162.8,2.2726]
[1717796640075,7.44,162.81,162.8,2.2726]
[1717796640275,2.2727,162.8,162.75,2.2732]
[1717796640491,7.44,162.76,162.71,10.6393]
[1717796640794,7.44,162.72,162.69,10.6398]
[1717796641015,45.0,162.8,162.71,2.2739]
[1717796641016,2.2733,162.76,162.71,2.2739]
[1717796641299,7.44,162.72,162.71,2.2739]
[1717796643106,7.44,162.72,162.67,4.549]
[1717796643268,7.44,162.7,162.69,2.2742]
[1717796650413,2.273,162.78,162.73,2.2736]
[1717796650905,7.44,162.74,162.73,2.2736]
[1717796651113,7.44,162.74,162.72,2.2738]
[1717796651307,2.273,162.78,162.73,2.2736]
[1717796651506,7.44,162.74,162.72,2.2738]
[1717796651688,47.273,162.78,162.73,2.2737]
[1717796651886,7.44,162.74,162.73,2.2737]
[1717796656415,3.9762,162.78,162.73,2.2737]
[1717796656705,7.44,162.74,162.73,2.2737]
[1717796657603,7.44,162.74,162.65,9.0987]
[1717796657803,45.0,162.73,162.69,2.2742]
[1717796658103,7.44,162.7,162.68,2.2744]
[1717796658305,7.44,162.69,162.68,2.2744]
[1717796658508,7.44,162.69,162.67,2.2744]
[1717796658687,7.44,162.68,162.67,2.2744]
[1717796660208,9.7138,162.72,162.68,2.2743]
[1717796660404,45.0,162.71,162.68,2.2743]
[1717796667723,47.2739,162.71,162.67,2.2745]
[1717796667906,47.2739,162.71,162.66,2.2746]
[1717796668294,47.2739,162.71,162.67,2.2745]
[1717796681126,47.2739,162.71,162.66,2.2746]
[1717796681328,47.2739,162.71,162.67,2.2745]
[1717796683308,47.2739,162.71,162.64,4.5499]
[1717796684935,47.2739,162.71,162.67,2.2745]
[1717796694418,7.44,162.68,162.67,2.2745]
[1717796694638,47.2739,162.71,162.67,2.2745]
[1717796699238,47.274,162.71,162.67,2.2745]
[1717796699543,2.2742,162.7,162.66,2.2746]
[1717796699740,2.2742,162.7,162.64,4.5499]
[1717796699741,2.2742,162.7,162.67,2.2745]
[1717796700135,7.44,162.68,162.65,2.2746]
[1717796700441,7.44,162.66,162.65,2.2746]
[1717796700845,7.44,162.66,162.62,20.4767]
[1717796701044,7.44,162.65,162.62,26.956]
[1717796701752,7.44,162.65,162.64,2.2749]
[1717796702248,2.275,162.64,162.6,2.2755]
[1717796702431,7.44,162.61,162.57,20.4829]
[1717796702641,7.44,162.61,162.6,2.2754]
[1717796703930,7.44,162.62,162.6,2.2754]
[1717796704141,45.0,162.64,162.6,2.2754]
[1717796704142,7.44,162.61,162.6,2.2754]
[1717796704375,7.44,162.62,162.6,2.2754]
[1717796707554,47.2749,162.64,162.6,2.2754]
[1717796707852,7.44,162.62,162.6,2.2754]
[1717796708049,45.0,162.64,162.6,2.2754]
[1717796708252,7.44,162.62,162.6,2.2754]
[1717796710640,7.44,162.62,162.59,2.2755]
[1717796711155,2.2749,162.64,162.6,8.5419]
[1717796711356,7.44,162.62,162.6,8.5419]
[1717796714036,7.44,162.62,162.6,2.2754]
[1717796714547,7.44,162.62,162.59,2.2755]
[1717796715052,7.44,162.62,162.59,8.542]
[1717796715240,7.44,162.61,162.59,8.542]
[1717796715956,2.2749,162.64,162.6,6.2665]
[1717796716132,7.44,162.62,162.6,8.5419]
[1717796717159,7.44,162.62,162.6,6.2665]
[1717796717758,7.44,162.62,162.6,8.542]
[1717796718262,7.44,162.61,162.59,2.2755]
[1717796723163,7.44,162.61,162.6,8.4245]
[1717796723567,7.44,162.62,162.6,8.4245]
[1717796724067,7.44,162.62,162.6,2.2755]
[1717796730982,2.2751,162.63,162.6,2.2755]
[1717796731157,7.44,162.62,162.6,2.2755]
[1717796731884,7.44,162.61,162.59,2.2756]
[1717796735886,7.44,162.6,162.59,2.2756]
[1717796750500,2.275,162.64,162.6,2.2754]
[1717796750676,7.44,162.61,162.6,2.2754]
[1717796752783,12.26152488,162.66,162.59,4.5513]
[1717796752985,7.44,162.64,162.61,2.2752]
[1717796753700,7.44,162.63,162.61,2.2752]
[1717796756005,2.2748,162.65,162.59,92.5894]
[1717796756182,2.2747,162.66,162.63,2.2751]
[1717796756383,2.2747,162.66,162.64,2.2749]
[1717796756384,7.44,162.66,162.64,2.2749]
[1717796756580,7.44,162.66,162.63,2.275]
[1717796756780,7.44,162.66,162.64,2.2749]
[1717796756982,2.2745,162.67,162.64,2.2749]
[1717796757292,7.44,162.66,162.64,2.2749]
[1717796757491,2.2744,162.68,162.65,2.2748]
[1717796757689,7.44,162.67,162.65,2.2748]
[1717796758800,2.2744,162.68,162.65,2.2748]
[1717796758999,5.57892087,162.7,162.66,2.2746]
[1717796759204,7.44,162.67,162.65,2.2747]
[1717796760096,2.2743,162.69,162.66,2.2746]
[1717796760279,7.44,162.67,162.66,2.2746]
[1717796760711,7.44,162.68,162.66,2.2746]
[1717796763714,7.44,162.68,162.65,2.2747]
[1717796764304,7.44,162.67,162.65,2.2747]
[1717796765128,7.44,162.67,162.66,2.2746]
[1717796768429,7.44,162.68,162.66,2.2746]
[1717796770131,7.44,162.68,162.67,2.2745]
[1717796770831,387.5,162.71,162.66,4.5492]
[1717796770832,387.5,162.71,162.69,2.2742]
[1717796771008,7.44,162.7,162.69,2.2742]
[1717796771710,7.44,162.7,162.68,2.2743]
[1717796771922,7.44,162.69,162.68,2.2743]
[1717796804837,7.2492481,162.72,162.68,2.2743]
[1717796805041,45.0,162.71,162.69,2.2742]
[1717796805257,7.44,162.7,162.69,2.2742]
[1717796807448,7.44,162.7,162.68,2.2743]
[1717796812661,7.44,162.7,162.69,2.2742]
[1717796819452,45.0,162.71,162.7,2.2741]
[1717796819654,52.44,162.71,162.69,2.2742]
[1717796820762,45.0,162.71,162.69,2.2742]
[1717796821078,7.44,162.7,162.69,2.2742]
[1717796821462,4.9753481,162.72,162.7,2.274]
[1717796821662,7.44,162.71,162.7,2.274]
[1717796833084,12.84515994,162.74,162.7,2.274]
[1717796833277,12.84515994,162.74,162.68,2.2742]
[1717796833278,7.44,162.71,162.68,2.2742]
[1717796833493,32.0339,162.72,162.68,2.2744]
[1717796833494,7.44,162.69,162.68,2.2744]
[1717796842893,7.44,162.69,162.67,2.2744]
[1717796843083,7.44,162.68,162.67,2.2744]
[1717796846788,2.2739,162.71,162.67,2.2744]
[1717796847006,7.44,162.68,162.67,2.2744]
[1717796854688,7.44,162.68,162.62,6.4383]
[1717796855791,7.44,162.68,162.62,86.4383]
[1717796855992,7.44,162.68,162.67,2.2744]
[1717796859019,12.35497225,162.68,162.67,2.2744]
[1717796867302,4.91497225,162.68,162.67,2.2744]
[1717796867521,7.44,162.68,162.67,2.2744]
[1717796882431,9.1432,162.68,162.55,6.2561]
[1717796882625,7.44,162.61,162.59,4.5511]
[1717796882832,7.44,162.61,162.6,2.2755]
[1717796883014,2.2747,162.66,162.61,2.2753]
[1717796883216,7.44,162.62,162.61,2.2753]
[1717796885028,2.2747,162.66,162.61,2.2753]
[1717796885229,7.44,162.62,162.61,2.2753]
[1717796891346,2.2747,162.66,162.62,2.2752]
[1717796891545,7.44,162.63,162.62,2.2752]
[1717796902553,52.15808811,162.67,162.62,2.2752]
[1717796902726,7.44,162.63,162.62,2.2752]
[1717796903745,52.15808811,162.67,162.62,2.2752]
[1717796904052,7.44,162.63,162.62,2.2752]
[1717796906438,52.15808811,162.67,162.63,2.275]
[1717796906640,7.44,162.64,162.63,2.275]
[1717796906838,52.44,162.64,162.63,2.275]
[1717796909856,52.44,162.64,162.62,2.2751]
[1717796910043,7.44,162.63,162.62,2.2751]
[1717796911439,7.44,162.63,162.57,100.4824]
[1717796911647,7.44,162.62,162.6,2.2754]
[1717796912361,7.44,162.62,162.61,2.2753]
[1717796914578,7.44,162.62,162.6,2.2754]
[1717796915242,47.2749,162.64,162.6,2.2754]
[1717796915542,7.44,162.61,162.6,2.2754]
[1717796919757,7.44,162.61,162.59,2.2755]
[1717796920062,7.44,162.6,162.59,2.2755]
[1717796922760,47.2749,162.64,162.6,2.2755]
[1717796922942,7.44,162.61,162.59,2.2755]
[1717796923142,47.2749,162.64,162.59,2.2755]
[1717796923342,7.44,162.6,162.59,2.2755]
[1717796925760,7.44,162.6,162.58,2.2757]
[1717796927377,7.44,162.59,162.58,2.2757]
[1717796929555,2.2751,162.63,162.58,2.2757]
[1717796929777,7.44,162.59,162.58,2.2757]
[1717796930368,2.2751,162.63,162.58,2.2757]
[1717796930558,7.44,162.6,162.58,2.2757]
[1717796930770,7.44,162.59,162.58,2.2757]
[1717796931675,7.44,162.6,162.58,82.2757]
[1717796932066,47.2751,162.63,162.58,82.2757]
[1717796932265,7.44,162.6,162.58,82.2757]
[1717796932687,7.44,162.6,162.59,2.2756]
[1717796932858,47.2751,162.63,162.58,80.0]
[1717796933057,7.44,162.6,162.58,82.2757]
[1717796934585,7.44,162.6,162.58,2.2757]
[1717796937973,7.44,162.59,162.56,4.5519]
[1717796939062,7.44,162.59,162.58,2.2758]
[1717796939264,7.44,162.59,162.56,2.2759]
[1717796939590,7.44,162.58,162.54,19.8294]
[1717796940093,7.44,162.58,162.57,2.2759]
[1717796954798,2.2753,162.62,162.57,2.2759]
[1717796954999,47.2753,162.62,162.57,2.2759]
[1717796955603,52.10846193,162.62,162.57,2.2759]
[1717796957800,7.44,162.58,162.57,2.2759]
[1717796960088,52.10846193,162.62,162.57,2.2759]
[1717796960289,7.44,162.58,162.57,2.2759]
[1717796961704,52.10846193,162.62,162.57,2.2759]
[1717796962005,7.44,162.58,162.57,2.2759]
[1717796980322,2.2754,162.61,162.54,20.4864]
[1717796980628,47.2754,162.61,162.56,2.2759]
[1717796980820,7.44,162.57,162.56,2.2759]
[1717796983914,47.2754,162.61,162.57,2.2758]
[1717796984113,7.44,162.58,162.57,2.2758]
[1717796984310,47.2754,162.61,162.57,2.2758]
[1717796984737,7.44,162.58,162.57,2.2758]
[1717796985237,47.2754,162.61,162.57,2.2758]
[1717796985435,7.44,162.58,162.57,2.2758]
[1717796987022,7.44,162.58,162.56,2.276]
[1717796987226,2.2755,162.6,162.56,2.276]
[1717796987227,7.44,162.57,162.56,2.276]
[1717796987921,7.44,162.57,162.53,4.5529]
[1717796988239,7.44,162.56,162.55,2.2761]
[1717796990544,60.9281,162.61,162.51,10.8409]
[1717796990836,7.44,162.55,162.51,10.8409]
[1717796991536,7.44,162.55,162.53,2.2764]
[1717796991918,2.2758,162.58,162.53,2.2764]
[1717796992118,7.44,162.55,162.53,2.2764]
[1717796992319,7.44,162.54,162.53,2.2764]
[1717796992519,2.2758,162.58,162.53,2.2764]
[1717796992719,7.44,162.54,162.53,2.2764]
[1717796993537,2.2758,162.58,162.53,2.2764]
[1717796993737,7.44,162.54,162.53,2.2764]
[1717796999742,7.44,162.54,162.51,8.5641]
[1717796999948,7.44,162.54,162.51,6.2875]
[1717797000121,2.276,162.57,162.52,2.2766]
[1717797000547,7.44,162.54,162.52,2.2766]
[1717797001230,2.276,162.57,162.52,2.2766]
[1717797001439,7.44,162.54,162.52,2.2766]
[1717797003325,7.44,162.53,162.51,2.2767]
[1717797004146,7.44,162.53,162.52,2.2766]
[1717797005335,7.44,162.53,162.51,2.2766]
[1717797005519,7.44,162.53,162.49,6.3837]
[1717797005726,7.44,162.53,162.51,2.2767]
[1717797005926,7.44,162.52,162.51,2.2767]
[1717797006122,2.2761,162.56,162.51,2.2767]
[1717797006326,7.44,162.52,162.51,2.2767]
[1717797006633,7.44,162.53,162.51,2.2767]
[1717797007172,7.44,162.52,162.5,2.2768]
[1717797007460,2.2762,162.55,162.5,2.2768]
[1717797007461,7.44,162.51,162.5,2.2768]
[1717797008760,7.44,162.51,162.49,2.2769]
[1717797009541,2.2763,162.54,162.49,2.2769]
[1717797009737,7.44,162.51,162.49,2.2769]
[1717797012254,2.2762,162.55,162.5,2.2769]
[1717797012455,7.44,162.52,162.5,2.2769]
[1717797012634,2.2762,162.55,162.5,2.2769]
[1717797012839,7.44,162.52,162.5,2.2769]
[1717797014529,7.44,162.51,162.5,2.2769]
[1717797014939,7.44,162.51,162.47,6.6026]
[1717797015144,7.44,162.5,162.47,6.6026]
[1717797015352,7.44,162.51,162.49,2.2769]
[1717797016871,7.44,162.51,162.48,2.2771]
[1717797017276,7.44,162.51,162.49,2.277]
[1717797017975,7.44,162.51,162.48,2.2771]
[1717797018273,7.44,162.51,162.49,2.277]
[1717797021451,7.44,162.5,162.49,2.277]
[1717797022054,7.44,162.51,162.49,2.277]
[1717797023487,7.44,162.5,162.49,2.277]
[1717797023863,7.44,162.5,162.46,2.2773]
[1717797024188,2.2769,162.51,162.46,2.2773]
[1717797024189,7.44,162.47,162.46,2.2773]
[1717797024789,2.2768,162.51,162.46,2.2773]
[1717797024991,7.44,162.47,162.46,2.2773]
[1717797025393,2.2768,162.51,162.46,2.2773]
[1717797025574,7.44,162.48,162.44,4.5555]
[1717797025777,7.44,162.48,162.46,2.2773]
[1717797026984,7.44,162.48,162.47,2.2773]
[1717797031597,7.44,162.48,162.46,2.2774]
[1717797031894,7.44,162.47,162.46,2.2774]
[1717797032594,7.44,162.47,162.44,2.2776]
[1717797032791,7.44,162.46,162.44,2.2776]
[1717797033086,7.44,162.45,162.44,2.2776]
[1717797033395,7.44,162.45,162.43,2.2778]
[1717797033772,7.44,162.45,162.41,25.83597495]
[1717797033968,7.44,162.42,162.41,25.83597495]
[1717797034576,2.2774,162.47,162.42,2.2779]
[1717797034789,7.44,162.44,162.42,2.2779]
[1717797035068,7.44,162.43,162.41,25.83597495]
[1717797035264,7.44,162.43,162.41,28.11407495]
[1717797037188,7.44,162.43,162.42,2.278]
[1717797038691,7.44,162.43,162.41,28.11407495]
[1717797041388,7.44,162.43,162.42,2.278]
[1717797048512,7.44,162.44,162.42,2.278]
[1717797049726,7.44,162.44,162.42,2.2779]
[1717797049909,7.44,162.44,162.41,3.1274018]
[1717797050087,7.44,162.44,162.42,2.2779]
[1717797050894,4.96347328,162.47,162.41,5.4055018]
[1717797051086,7.44,162.44,162.43,2.2778]
[1717797051293,7.44,162.44,162.42,2.2779]
[1717797051726,5.01525318,162.5,162.41,7.6837018]
[1717797052019,7.44,162.44,162.43,2.2779]
[1717797053724,45.0,162.49,162.44,2.2776]
[1717797053725,2.2772,162.48,162.44,2.2776]
[1717797053896,7.44,162.45,162.44,2.2776]
[1717797054796,2.2773,162.47,162.43,2.2778]
[1717797055097,7.44,162.44,162.43,2.2778]
[1717797056906,7.44,162.44,162.43,2.2779]
[1717797057324,7.44,162.44,162.41,0.8493018]
[1717797057494,7.44,162.43,162.42,2.2779]
[1717797059407,2.2774,162.47,162.43,2.2778]
[1717797059804,7.44,162.44,162.43,2.2778]
[1717797060616,7.44,162.44,162.41,0.8493018]
[1717797060926,16.2797,162.48,162.41,3.1274018]
[1717797060927,7.44,162.42,162.41,3.1274018]
[1717797061325,2.2776,162.45,162.41,3.1274018]
[1717797061514,7.44,162.42,162.41,3.1274018]
[1717797065526,2.2775,162.46,162.42,2.278]
[1717797065820,7.44,162.43,162.42,2.278]
[1717797066052,7.44,162.43,162.41,3.1274018]
[1717797066342,7.44,162.42,162.41,0.8493018]
[1717797067729,2.2776,162.45,162.41,3.1273018]
[1717797067932,7.44,162.42,162.41,3.1273018]
[1717797069045,7.44,162.42,162.41,0.8493018]
[1717797069207,7.22294215,162.46,162.41,0.8493018]
[1717797069409,2.2776,162.46,162.42,2.2779]
[1717797069622,7.44,162.43,162.42,2.2779]
[1717797069911,7.44,162.43,162.41,0.8493018]
[1717797070230,7.44,162.42,162.41,3.1274018]
[1717797072709,7.44,162.42,162.41,0.8493018]
[1717797073435,7.44,162.42,162.13,46.31713956]
[1717797073436,2.2785,162.39,162.35,2.279]
[1717797073623,7.44,162.37,162.32,6.034]
[1717797073831,7.44,162.36,162.35,2.279]
[1717797074144,7.44,162.36,162.31,96.1087]
[1717797074350,7.44,162.36,162.35,2.279]
[1717797074638,7.44,162.37,162.36,2.2788]
[1717797075233,45.0,162.42,162.36,2.2788]
[1717797075439,7.44,162.38,162.36,2.2788]
[1717797075604,9.1104,162.45,162.38,2.2785]
[1717797075811,7.44,162.39,162.38,2.2785]
[1717797077430,7.44,162.4,162.34,7.44]
[1717797077629,7.44,162.4,162.33,6.034]
[1717797077929,7.44,162.4,162.34,7.44]
[1717797078623,7.44,162.4,162.36,16.1087]
[1717797078825,7.44,162.4,162.37,6.034]
[1717797079535,7.44,162.4,162.37,22.1427]
[1717797079770,7.44,162.41,162.37,22.1427]
[1717797080316,7.44,162.4,162.37,22.1427]
[1717797082116,7.44,162.4,162.37,102.1427]
[1717797083216,32.0376,162.45,162.37,102.1427]
[1717797085052,32.0376,162.45,162.37,22.1427]
[1717797086366,2.2777,162.44,162.37,22.1427]
[1717797087920,7.44,162.41,162.37,22.1427]
[1717797088257,2.2777,162.44,162.37,96.1087]
[1717797088626,7.44,162.41,162.38,6.2239]
[1717797089842,2.2777,162.44,162.38,6.2239]
[1717797090059,7.44,162.41,162.38,6.2239]
[1717797091736,47.2776,162.45,162.38,6.2239]
[1717797091947,7.44,162.41,162.38,6.2239]
[1717797092240,7.44,162.42,162.38,6.2239]
[1717797093254,7.44,162.41,162.38,86.2239]
[1717797094342,7.44,162.41,162.38,6.2239]
[1717797097263,7.44,162.41,162.38,86.2239]
[1717797100456,7.44,162.41,162.38,6.2239]
[1717797100866,2.2776,162.45,162.38,6.2239]
[1717797101066,7.44,162.41,162.38,6.2239]
[1717797109065,15.30143709,162.46,162.38,6.2239]
[1717797109270,7.44,162.42,162.38,6.2239]
[1717797111374,7.44,162.42,162.38,86.2239]
[1717797112587,7.44,162.42,162.38,6.2239]
[1717797114881,45.0,162.45,162.38,6.2239]
[1717797115281,7.44,162.42,162.38,6.2239]
[1717797115658,7.44,162.42,162.38,86.2239]
[1717797116581,47.2776,162.45,162.38,86.2239]
[1717797116883,7.44,162.42,162.38,86.2239]
[1717797118589,7.44,162.42,162.38,6.2239]
[1717797121294,47.2776,162.45,162.38,6.2239]
[1717797121593,47.2776,162.45,162.38,86.2239]
[1717797121594,7.44,162.42,162.38,86.2239]
[1717797122487,2.2776,162.45,162.39,6.3595]
[1717797122665,7.44,162.42,162.39,6.3595]
[1717797124885,2.2776,162.45,162.39,6.3595]
[1717797125087,7.44,162.42,162.39,6.3595]
[1717797125386,2.2784,162.4,162.31,0.5309913]
[1717797125606,7.44,162.37,162.32,6.3595]
[1717797125896,7.44,162.37,162.34,22.6603]
[1717797127066,7.44,162.37,162.36,2.2788]
[1717797127563,7.44,162.38,162.37,2.2787]
[1717797128476,2.2782,162.41,162.37,2.2787]
[1717797128682,7.44,162.38,162.37,2.2787]
[1717797128884,2.2779,162.43,162.39,2.2784]
[1717797129066,7.44,162.4,162.39,2.2784]
[1717797129512,2.2779,162.43,162.39,2.2784]
[1717797129513,7.44,162.41,162.39,2.2784]
[1717797129813,2.2779,162.43,162.39,2.2784]
[1717797129981,7.44,162.41,162.39,2.2784]
[1717797130178,2.2779,162.43,162.34,22.4299]
[1717797130388,7.44,162.41,162.34,22.4299]
[1717797130696,7.44,162.4,162.34,29.8699]
[1717797131600,7.44,162.4,162.35,80.0]
[1717797131787,7.44,162.4,162.36,16.0704]
[1717797132095,7.44,162.4,162.37,6.0332]
[1717797135384,2.2779,162.43,162.37,6.0332]
[1717797136703,2.2778,162.44,162.37,6.0332]
[1717797137507,7.44,162.41,162.37,6.0332]
[1717797137690,7.44,162.41,162.37,86.0332]
[1717797140886,7.44,162.41,162.37,6.0332]
[1717797141493,7.44,162.41,162.4,2.2783]
[1717797143290,2.2778,162.44,162.4,2.2783]
[1717797145104,2.2779,162.43,162.4,2.2783]
[1717797145306,2.2778,162.44,162.4,2.2783]
[1717797145904,2.2778,162.44,162.4,2.2782]
[1717797146208,7.44,162.41,162.4,2.2782]
[1717797151326,7.44,162.41,162.39,2.2784]
[1717797151490,7.44,162.4,162.39,2.2784]
[1717797152427,2.2778,162.44,162.4,2.2783]
[1717797154226,2.2779,162.43,162.39,2.2783]
[1717797154698,2.2778,162.44,162.4,2.2783]
[1717797158130,29.76,162.45,162.35,80.0]
[1717797158438,29.76,162.45,162.4,2.2782]
[1717797158439,2.2777,162.44,162.4,2.2782]
[1717797167312,7.44,162.41,162.4,2.2782]
[1717797168910,2.2777,162.44,162.4,2.2782]
[1717797169327,15.30143709,162.46,162.42,2.2779]
[1717797169529,7.44,162.43,162.42,2.2779]
[1717797170030,7.44,162.43,162.41,2.2781]
[1717797170331,7.44,162.42,162.37,6.1049]
[1717797170514,2.2779,162.43,162.39,2.2783]
[1717797170834,7.44,162.4,162.39,2.2783]
[1717797172016,2.2779,162.43,162.4,2.2783]
[1717797172920,7.44,162.41,162.4,2.2783]
[1717797173121,7.44,162.41,162.39,2.2783]
[1717797173323,7.44,162.4,162.39,2.2783]
[1717797176539,7.44,162.4,162.34,80.0]
[1717797176540,2.278,162.42,162.38,2.2785]
[1717797176834,2.2779,162.43,162.39,2.2784]
[1717797177031,2.2779,162.43,162.39,2.2783]
[1717797177416,7.44,162.4,162.39,2.2783]
[1717797177943,45.0,162.44,162.34,6.5079]
[1717797178237,7.44,162.4,162.39,2.2784]
[1717797178615,2.2778,162.44,162.4,2.2783]
[1717797178821,2.2778,162.44,162.34,6.5079]
[1717797178822,7.44,162.41,162.34,6.5079]
[1717797179026,2.2778,162.44,162.4,2.2782]
[1717797179331,7.44,162.41,162.39,2.2783]
[1717797179513,7.44,162.4,162.39,2.2783]
[1717797180235,29.76,162.45,162.37,86.5079]
[1717797180420,7.44,162.41,162.4,2.2783]
[1717797181435,7.44,162.41,162.4,2.2782]
[1717797183531,7.44,162.41,162.31,0.5309913]
[1717797183735,2.2782,162.41,162.37,2.2786]
[1717797183922,7.44,162.38,162.37,2.2786]
[1717797185025,10.8816,162.44,162.37,2.2786]
[1717797185026,2.2781,162.42,162.37,2.2786]
[1717797185228,7.44,162.38,162.37,2.2786]
[1717797185420,2.2781,162.42,162.37,2.2786]
[1717797185618,7.44,162.38,162.32,7.44]
[1717797186022,7.44,162.38,162.37,2.2787]
[1717797186654,7.44,162.39,162.37,82.2787]
[1717797187343,7.44,162.39,162.38,2.2786]
[1717797188040,7.44,162.39,162.37,82.2786]
[1717797188853,7.44,162.39,162.38,2.2785]
[1717797189143,6.3261,162.48,162.38,22.2596]
[1717797189351,8.0,162.46,162.38,29.6996]
[1717797189543,8.0,162.46,162.45,2.2776]
[1717797189854,15.44,162.46,162.45,2.2776]
[1717797191039,8.0,162.46,162.45,2.2776]
[1717797191267,15.44,162.46,162.45,2.2776]
[1717797193733,8.0,162.46,162.45,2.2776]
[1717797193932,15.44,162.46,162.45,2.2776]